[Event "Slovakia Open Piestany-A 2022"]
[Site "Piestany"]
[Date "2022.07.12"]
[Round "2.8"]
[White "Turcan, Richard"]
[Black "Sahidi, Samir"]
[Result "1/2-1/2"]
[ECO "C54"]
[WhiteElo "2304"]
[BlackElo "2462"]
[Annotator "ChessBase"]
[PlyCount "216"]
[EventDate "2022.07.12"]
[EventType "swiss"]
[EventCountry "SVK"]
[SourceTitle "playchess.com"]
[Source "ChessBase"]
[SourceQuality "1"]
[TimeControl "40/5400+30:1800+30"]

1. e4 {[%emt 0:00:03]} e5 {[%emt 0:00:43]} 2. Nf3 {[%emt 0:00:14]} Nc6 {[%emt 0:00:06]} 3. Bc4 {[%emt 0:00:22]} Bc5 {[%emt 0:01:11]} 4. c3 {[%emt 0:00:18]} Nf6 {[%emt 0:00:31]} 5. d4 {[%emt 0:00:34]} exd4 {[%emt 0:00:13]} 6. cxd4 {[%emt 0:00:10]} Bb4+ {[%emt 0:00:31]} 7. Bd2 {[%emt 0:00:48]} Bxd2+ {[%emt 0:02:38]} 8. Nbxd2 {[%emt 0:00:07]} d5 {[%emt 0:01:15]} 9. exd5 {[%emt 0:00:11]} Nxd5 {[%emt 0:01:31]} 10. Qb3 {[%emt 0:00:17]} Nce7 {[%emt 0:02:29]} 11. O-O {[%emt 0:01:20]} O-O {[%emt 0:01:22]} 12. Rfe1 {[%emt 0:00:37]} Nb6 {[%emt 0:05:05]} 13. Bxf7+ {[%emt 0:07:50]} Rxf7 {[%emt 0:01:35]} 14. Ng5 {[%emt 0:00:12]} Qd5 {[%emt 0:08:53]} 15. Nxf7 {[%emt 0:00:34]} Qxb3 {[%emt 0:01:43]} 16. Nh6+ {[%emt 0:00:18]} gxh6 {[%emt 0:00:25]} 17. Nxb3 {[%emt 0:00:09]} Kf7 {[%emt 0:01:30]} 18. Re3 {[%emt 0:07:55]} Nbd5 {[%emt 0:02:57]} 19. Rf3+ {[%emt 0:00:54]} Nf6 {[%emt 0:00:22]} 20. Re1 {[%emt 0:05:06]} b6 {[%emt 0:09:31]} 21. Nd2 {[%emt 0:05:58]} Bb7 {[%emt 0:02:12]} 22. Ne4 {[%emt 0:01:21]} Bxe4 {[%emt 0:02:06]} 23. Rxe4 {[%emt 0:00:07]} Rd8 {[%emt 0:01:27]} 24. Kf1 {[%emt 0:07:51]} Nc6 {[%emt 0:06:51]} 25. Ref4 {[%emt 0:02:46]} Rd6 {[%emt 0:00:02]} 26. Rc3 {[%emt 0:01:58]} Ke7 {[%emt 0:01:01]} 27. Re3+ {[%emt 0:02:43]} Re6 {[%emt 0:11:03]} 28. Ke2 {[%emt 0:20:18]} Nd5 {[%emt 0:04:50]} 29. Rxe6+ {[%emt 0:01:42]} Kxe6 {[%emt 0:00:05]} 30. Rh4 {[%emt 0:00:17]} h5 {[%emt 0:00:30]} 31. a3 {[%emt 0:01:15]} Nf6 {[%emt 0:07:00]} 32. Rf4 {[%emt 0:03:25]} b5 {[%emt 0:01:35]} 33. Kd3 {[%emt 0:02:01]} Ne7 {[%emt 0:01:59]} 34. Rf3 {[%emt 0:01:57]} Ned5 {[%emt 0:00:20]} 35. Ke2 {[%emt 0:09:52]} c6 {[%emt 0:02:38]} 36. g3 {[%emt 0:00:32]} a5 {[%emt 0:02:36]} 37. b3 {[%emt 0:02:12]} Nb6 {[%emt 0:01:12]} 38. Re3+ {[%emt 0:02:06]} Kd6 {[%emt 0:12:16]} 39. h3 {[%emt 0:13:40]} a4 {[%emt 0:05:46]} 40. bxa4 {[%emt 0:00:30]} Nxa4 {[%emt 0:00:30]} 41. Re5 {[%emt 0:30:30]} Nb6 {[%emt 0:30:30]} 42. Rf5 {[%emt 0:00:30]} Nbd7 {[%emt 0:00:30]} 43. Rg5 {[%emt 0:00:30]} Ke6 {[%emt 0:00:30]} 44. Kd3 {[%emt 0:00:30]} Kf7 {[%emt 0:00:30]} 45. Rf5 {[%emt 0:00:30]} Kg6 {[%emt 0:00:30]} 46. Rf3 {[%emt 0:00:30]} c5 {[%emt 0:00:30]} 47. Re3 {[%emt 0:00:30]} c4+ {[%emt 0:00:30]} 48. Kd2 {[%emt 0:00:30]} Kf7 {[%emt 0:00:30]} 49. Re1 {[%emt 0:00:30]} Ne8 {[%emt 0:00:30]} 50. Kc3 {[%emt 0:00:30]} Nc7 {[%emt 0:00:30]} 51. Kb4 {[%emt 0:00:30]} Nb6 {[%emt 0:00:30]} 52. Kc5 {[%emt 0:00:30]} Nbd5 {[%emt 0:00:30]} 53. a4 {[%emt 0:00:30]} bxa4 {[%emt 0:00:30]} 54. Kxc4 {[%emt 0:00:30]} Kf6 {[%emt 0:00:30]} 55. Kc5 {[%emt 0:00:30]} Nc3 {[%emt 0:00:30]} 56. Rc1 {[%emt 0:00:30]} Ne6+ {[%emt 0:00:30]} 57. Kc4 {[%emt 0:00:30]} Ne4 {[%emt 0:00:30]} 58. Ra1 {[%emt 0:00:30]} Nd6+ {[%emt 0:00:30]} 59. Kd3 {[%emt 0:00:30]} Ng5 {[%emt 0:00:30]} 60. Rxa4 {[%emt 0:00:30]} Nxh3 {[%emt 0:00:30]} 61. Ke3 {[%emt 0:00:30]} Nf5+ {[%emt 0:00:30]} 62. Kf3 {[%emt 0:00:30]} Ng5+ {[%emt 0:00:30]} 63. Ke2 {[%emt 0:00:30]} Ne6 {[%emt 0:00:30]} 64. Kd3 {[%emt 0:00:30]} h4 {[%emt 0:00:30]} 65. gxh4 {[%emt 0:00:30]} Nxh4 {[%emt 0:00:30]} 66. Ra7 {[%emt 0:00:30]} h5 {[%emt 0:00:30]} 67. d5 {[%emt 0:00:30]} Nf8 {[%emt 0:00:30]} 68. Ke4 {[%emt 0:00:30]} Nf5 {[%emt 0:00:30]} 69. Ra6+ {[%emt 0:00:30]} Kg5 {[%emt 0:00:30]} 70. d6 {[%emt 0:00:30]} Nd7 {[%emt 0:00:30]} 71. Ra5 {[%emt 0:00:30]} Nf6+ {[%emt 0:00:30]} 72. Ke5 {[%emt 0:00:30]} Kg6 {[%emt 0:00:30]} 73. Ra6 {[%emt 0:00:30]} Nd7+ {[%emt 0:00:30]} 74. Kf4 {[%emt 0:00:30]} Ng7 {[%emt 0:00:30]} 75. Ra7 {[%emt 0:00:30]} Ne6+ {[%emt 0:00:30]} 76. Ke4 {[%emt 0:00:30]} Nef8 {[%emt 0:00:30]} 77. f4 {[%emt 0:00:30]} Kf6 {[%emt 0:00:30]} 78. Ra5 {[%emt 0:00:30]} Ke6 {[%emt 0:00:30]} 79. Rxh5 {[%emt 0:00:30]} Nf6+ {[%emt 0:00:30]} 80. Kf3 {[%emt 0:00:30]} Nxh5 {[%emt 0:00:30]} 81. f5+ {[%emt 0:00:30]} Kf6 {[%emt 0:00:30]} 82. Ke4 {[%emt 0:00:30]} Nd7 {[%emt 0:00:30]} 83. Kd5 {[%emt 0:00:30]} Kf7 {[%emt 0:00:30]} 84. f6 {[%emt 0:00:30]} Nhxf6+ {[%emt 0:00:30]} 85. Kd4 {[%emt 0:00:30]} Ke6 {[%emt 0:00:30]} 86. Ke3 {[%emt 0:00:30]} Ke5 {[%emt 0:00:30]} 87. Kf3 {[%emt 0:00:30]} Kd4 {[%emt 0:00:30]} 88. Kf4 {[%emt 0:00:30]} Ne4 {[%emt 0:00:30]} 89. Kf3 {[%emt 0:00:30]} Kd3 {[%emt 0:00:30]} 90. Kf4 {[%emt 0:00:30]} Nd2 {[%emt 0:00:30]} 91. Kf5 {[%emt 0:00:30]} Nc4 {[%emt 0:00:30]} 92. Kf4 {[%emt 0:00:30]} Ke2 {[%emt 0:00:30]} 93. Ke4 {[%emt 0:00:30]} Nce5 {[%emt 0:00:30]} 94. Kf4 {[%emt 0:00:30]} Kd3 {[%emt 0:00:30]} 95. Kf5 {[%emt 0:00:30]} Ke3 {[%emt 0:00:30]} 96. Ke6 {[%emt 0:00:30]} Ke4 {[%emt 0:00:30]} 97. Ke7 {[%emt 0:00:30]} Kd5 {[%emt 0:00:30]} 98. Kd8 {[%emt 0:00:30]} Ke6 {[%emt 0:00:30]} 99. Kc7 {[%emt 0:00:30]} Nc4 {[%emt 0:00:30]} 100. Kd8 {[%emt 0:00:30]} Nce5 {[%emt 0:00:30]} 101. Kc7 {[%emt 0:00:30]} Nf3 {[%emt 0:00:30]} 102. Kd8 {[%emt 0:00:30]} Ng5 {[%emt 0:00:30]} 103. Ke8 {[%emt 0:00:30]} Nf3 {[%emt 0:00:30]} 104. Kd8 {[%emt 0:00:30]} Nfe5 {[%emt 0:00:30]} 105. Kc7 {[%emt 0:00:30]} Kf7 {[%emt 0:00:30]} 106. Kd8 {[%emt 0:00:30]} Kf8 {[%emt 0:00:30]} 107. Kc8 {[%emt 0:00:30]} Kf7 {[%emt 0:00:30]} 108. Kd8 {[%emt 0:00:30]} Ke6 {[%emt 0:00:30]} 1/2-1/2

[Event "Slovakia Open Piestany-A 2022"]
[Site "Piestany"]
[Date "2022.07.12"]
[Round "2.9"]
[White "Stefansson, Vignir Vatnar"]
[Black "Hrbek, Stepan"]
[Result "0-1"]
[ECO "E11"]
[WhiteElo "2461"]
[BlackElo "2272"]
[Annotator "ChessBase"]
[PlyCount "88"]
[EventDate "2022.07.12"]
[EventType "swiss"]
[EventCountry "SVK"]
[SourceTitle "playchess.com"]
[Source "ChessBase"]
[SourceQuality "1"]
[TimeControl "40/5400+30:1800+30"]

1. d4 {[%emt 0:07:30]} Nf6 {[%emt 0:00:19]} 2. c4 {[%emt 0:01:13]} e6 {[%emt 0:00:12]} 3. g3 {[%emt 0:04:35]} Bb4+ {[%emt 0:00:22]} 4. Bd2 {[%emt 0:02:08]} Be7 {[%emt 0:00:19]} 5. Bg2 {[%emt 0:00:11]} d5 {[%emt 0:00:20]} 6. Nf3 {[%emt 0:00:06]} O-O {[%emt 0:00:15]} 7. O-O {[%emt 0:00:07]} c6 {[%emt 0:00:12]} 8. Na3 {[%emt 0:01:11]} b6 {[%emt 0:10:18]} 9. Rc1 {[%emt 0:01:45]} Bb7 {[%emt 0:00:13]} 10. Bf4 {[%emt 0:03:38]} Nbd7 {[%emt 0:04:50]} 11. cxd5 {[%emt 0:00:33]} Nxd5 {[%emt 0:12:52]} 12. Ne5 {[%emt 0:07:41]} Nxf4 {[%emt 0:07:21]} 13. gxf4 {[%emt 0:03:08]} Nxe5 {[%emt 0:00:06]} 14. fxe5 {[%emt 0:03:09]} Qd7 {[%emt 0:00:08]} 15. e3 {[%emt 0:07:41]} Rfd8 {[%emt 0:00:13]} 16. Qa4 {[%emt 0:11:10]} c5 {[%emt 0:01:53]} 17. Qxd7 {[%emt 0:01:03]} Rxd7 {[%emt 0:00:06]} 18. Bxb7 {[%emt 0:02:21]} Rxb7 {[%emt 0:00:08]} 19. dxc5 {[%emt 0:00:39]} Bxc5 {[%emt 0:00:18]} 20. Nc4 {[%emt 0:00:09]} Rd8 {[%emt 0:03:11]} 21. Rfd1 {[%emt 0:00:16]} Rbd7 {[%emt 0:01:06]} 22. Rxd7 {[%emt 0:00:08]} Rxd7 {[%emt 0:00:03]} 23. Kf1 {[%emt 0:00:06]} f6 {[%emt 0:01:07]} 24. Ke2 {[%emt 0:00:55]} Kf7 {[%emt 0:00:52]} 25. a3 {[%emt 0:00:44]} Be7 {[%emt 0:04:58]} 26. f4 {[%emt 0:03:16]} Rc7 {[%emt 0:07:18]} 27. exf6 {[%emt 0:01:23]} Kxf6 {[%emt 0:00:06]} 28. Rc3 {[%emt 0:01:43]} g5 {[%emt 0:18:46]} 29. a4 {[%emt 0:05:09]} gxf4 {[%emt 0:01:17]} 30. exf4 {[%emt 0:00:09]} Bb4 {[%emt 0:01:34]} 31. Rc2 {[%emt 0:00:06]} Rd7 {[%emt 0:01:09]} 32. Ne5 {[%emt 0:10:25]} Rd4 {[%emt 0:00:31]} 33. Rc4 {[%emt 0:01:01]} Rd2+ {[%emt 0:02:59]} 34. Ke3 {[%emt 0:04:02]} Rxb2 {[%emt 0:00:07]} 35. Rc7 {[%emt 0:00:34]} Bd2+ {[%emt 0:10:40]} 36. Kf3 {[%emt 0:00:33]} Rb3+ {[%emt 0:00:07]} 37. Kg4 {[%emt 0:01:45]} h5+ {[%emt 0:00:38]} 38. Kxh5 {[%emt 0:00:06]} Bxf4 {[%emt 0:00:24]} 39. Ng4+ {[%emt 0:00:09]} Kf5 {[%emt 0:00:05]} 40. Rf7+ {[%emt 0:00:05]} Ke4 {[%emt 0:00:07]} 41. Rxa7 {[%emt 0:32:34]} e5 {[%emt 0:14:22]} 42. a5 {[%emt 0:00:00]} bxa5 {[%emt 0:02:47]} 43. Rxa5 {[%emt 0:00:00]} Kf5 {[%emt 0:00:28]} 44. h4 {[%emt 0:00:00]} Rb8 {[%emt 0:00:28]} 0-1

[Event "Slovakia Open Piestany-A 2022"]
[Site "Piestany"]
[Date "2022.07.12"]
[Round "2.10"]
[White "Bochnicka, Vladimir"]
[Black "Haring, Filip"]
[Result "1/2-1/2"]
[ECO "B41"]
[WhiteElo "2295"]
[BlackElo "2451"]
[Annotator "ChessBase"]
[PlyCount "135"]
[EventDate "2022.07.12"]
[EventType "swiss"]
[EventCountry "SVK"]
[SourceTitle "playchess.com"]
[Source "ChessBase"]
[SourceQuality "1"]
[TimeControl "40/5400+30:1800+30"]

1. e4 {[%emt 0:00:04]} c5 {[%emt 0:01:35]} 2. Nf3 {[%emt 0:00:07]} e6 {[%emt 0:00:32]} 3. d4 {[%emt 0:00:07]} cxd4 {[%emt 0:00:11]} 4. Nxd4 {[%emt 0:00:06]} a6 {[%emt 0:00:10]} 5. c4 {[%emt 0:00:16]} Nf6 {[%emt 0:00:38]} 6. Nc3 {[%emt 0:00:08]} Qc7 {[%emt 0:00:13]} 7. a3 {[%emt 0:00:25]} b6 {[%emt 0:01:05]} 8. Be3 {[%emt 0:01:01]} Bb7 {[%emt 0:00:32]} 9. f3 {[%emt 0:00:35]} Be7 {[%emt 0:01:02]} 10. Be2 {[%emt 0:05:19]} d6 {[%emt 0:01:43]} 11. O-O {[%emt 0:00:47]} O-O {[%emt 0:00:56]} 12. Rc1 {[%emt 0:01:56]} Re8 {[%emt 0:04:32]} 13. b4 {[%emt 0:02:42]} Nbd7 {[%emt 0:01:20]} 14. Qe1 {[%emt 0:09:41]} Rac8 {[%emt 0:02:42]} 15. Qf2 {[%emt 0:04:08]} Qb8 {[%emt 0:01:03]} 16. Rfd1 {[%emt 0:05:05]} Bd8 {[%emt 0:04:49]} 17. Nb3 {[%emt 0:09:23]} Bc7 {[%emt 0:02:00]} 18. g3 {[%emt 0:00:17]} h5 {[%emt 0:05:10]} 19. a4 {[%emt 0:08:12]} h4 {[%emt 0:07:00]} 20. g4 {[%emt 0:01:37]} d5 {[%emt 0:09:31]} 21. f4 {[%emt 0:16:34]} e5 {[%emt 0:08:26]} 22. cxd5 {[%emt 0:00:35]} exf4 {[%emt 0:00:33]} 23. Bd4 {[%emt 0:00:34]} Ne5 {[%emt 0:12:10]} 24. h3 {[%emt 0:02:28]} Bd6 {[%emt 0:04:20]} 25. Nd2 {[%emt 0:10:45]} Bxb4 {[%emt 0:02:52]} 26. g5 {[%emt 0:04:09]} Nh7 {[%emt 0:05:27]} 27. Qxf4 {[%emt 0:01:56]} Ba3 {[%emt 0:03:31]} 28. Rc2 {[%emt 0:06:46]} Qc7 {[%emt 0:08:18]} 29. Bg4 {[%emt 0:04:50]} Nxg4 {[%emt 0:04:52]} 30. Qxc7 {[%emt 0:00:53]} Rxc7 {[%emt 0:00:06]} 31. g6 {[%emt 0:00:20]} Ng5 {[%emt 0:05:13]} 32. hxg4 {[%emt 0:00:46]} b5 {[%emt 0:01:11]} 33. axb5 {[%emt 0:01:01]} axb5 {[%emt 0:00:16]} 34. gxf7+ {[%emt 0:00:03]} Kxf7 {[%emt 0:01:11]} 35. Ra2 {[%emt 0:00:47]} b4 {[%emt 0:01:34]} 36. Nb5 {[%emt 0:00:25]} Rd7 {[%emt 0:00:04]} 37. Nc4 {[%emt 0:01:34]} Nxe4 {[%emt 0:01:04]} 38. Nbxa3 {[%emt 0:01:24]} Rxd5 {[%emt 0:01:04]} 39. Nb1 {[%emt 0:01:19]} Red8 {[%emt 0:00:31]} 40. Ra7 {[%emt 0:00:48]} Rxd4 {[%emt 0:00:27]} 41. Rxb7+ {[%emt 0:06:25]} Kg8 {[%emt 0:10:52]} 42. Rxd4 {[%emt 0:00:58]} Rxd4 {[%emt 0:00:06]} 43. Rxb4 {[%emt 0:01:48]} Kh7 {[%emt 0:00:24]} 44. Kh2 {[%emt 0:08:43]} Nf2 {[%emt 0:10:26]} 45. Nbd2 {[%emt 0:03:00]} Nxg4+ {[%emt 0:01:07]} 46. Kh3 {[%emt 0:00:48]} Ne3 {[%emt 0:01:39]} 47. Nxe3 {[%emt 0:05:51]} Rxb4 {[%emt 0:00:14]} 48. Nf5 {[%emt 0:00:27]} g5 {[%emt 0:00:44]} 49. Nf3 {[%emt 0:01:08]} g4+ {[%emt 0:01:35]} 50. Kxh4 {[%emt 0:00:06]} gxf3+ {[%emt 0:00:06]} 51. Kg3 {[%emt 0:00:07]} f2 {[%emt 0:01:21]} 52. Ne3 {[%emt 0:00:06]} Rb2 {[%emt 0:00:06]} 53. Kg2 {[%emt 0:00:12]} Kg6 {[%emt 0:01:17]} 54. Nd1 {[%emt 0:00:34]} Ra2 {[%emt 0:00:39]} 55. Nxf2 {[%emt 0:00:12]} Kf5 {[%emt 0:00:06]} 56. Kf3 {[%emt 0:00:18]} Ra3+ {[%emt 0:00:29]} 57. Ke2 {[%emt 0:00:24]} Kf4 {[%emt 0:00:18]} 58. Nd3+ {[%emt 0:00:38]} Ke4 {[%emt 0:00:07]} 59. Nf2+ {[%emt 0:00:13]} Kd4 {[%emt 0:00:05]} 60. Ng4 {[%emt 0:00:31]} Rg3 {[%emt 0:00:15]} 61. Nf2 {[%emt 0:00:27]} Re3+ {[%emt 0:00:09]} 62. Kd2 {[%emt 0:00:37]} Re8 {[%emt 0:00:56]} 63. Nd1 {[%emt 0:00:44]} Ra8 {[%emt 0:01:04]} 64. Ke2 {[%emt 0:00:25]} Ra2+ {[%emt 0:00:29]} 65. Kf3 {[%emt 0:00:13]} Ra3+ {[%emt 0:00:07]} 66. Ke2 {[%emt 0:00:29]} Ra2+ {[%emt 0:00:08]} 67. Kf3 {[%emt 0:00:22]} Rf2+ {[%emt 0:00:07]} 68. Kxf2 {[%emt 0:00:04]} 1/2-1/2

[Event "Slovakia Open Piestany-A 2022"]
[Site "Piestany"]
[Date "2022.07.12"]
[Round "2.11"]
[White "Samunenkov, Ihor"]
[Black "Sharma Isha"]
[Result "1-0"]
[ECO "E42"]
[WhiteElo "2448"]
[BlackElo "2236"]
[Annotator "ChessBase"]
[PlyCount "73"]
[EventDate "2022.07.12"]
[EventType "swiss"]
[EventCountry "SVK"]
[SourceTitle "playchess.com"]
[Source "ChessBase"]
[SourceQuality "1"]
[TimeControl "40/5400+30:1800+30"]

1. d4 {[%emt 0:00:03]} Nf6 {[%emt 0:00:10]} 2. c4 {[%emt 0:00:18]} e6 {[%emt 0:00:05]} 3. Nc3 {[%emt 0:04:15]} Bb4 {[%emt 0:00:10]} 4. e3 {[%emt 0:00:42]} c5 {[%emt 0:00:51]} 5. Nge2 {[%emt 0:02:35]} cxd4 {[%emt 0:00:10]} 6. exd4 {[%emt 0:01:01]} d5 {[%emt 0:00:07]} 7. a3 {[%emt 0:08:00]} Be7 {[%emt 0:01:15]} 8. c5 {[%emt 0:01:28]} b6 {[%emt 0:01:40]} 9. b4 {[%emt 0:02:09]} a5 {[%emt 0:00:08]} 10. Bf4 {[%emt 0:07:43]} O-O {[%emt 0:01:41]} 11. Rb1 {[%emt 0:04:49]} Bd7 {[%emt 0:10:50]} 12. g3 {[%emt 0:09:23]} Re8 {[%emt 0:00:44]} 13. Bg2 {[%emt 0:02:23]} Bf8 {[%emt 0:00:33]} 14. O-O {[%emt 0:02:03]} h6 {[%emt 0:01:32]} 15. h3 {[%emt 0:06:33]} Nh7 {[%emt 0:14:12]} 16. Qd3 {[%emt 0:07:54]} axb4 {[%emt 0:12:25]} 17. axb4 {[%emt 0:00:47]} bxc5 {[%emt 0:03:07]} 18. dxc5 {[%emt 0:03:47]} Na6 {[%emt 0:00:09]} 19. Be3 {[%emt 0:05:04]} Qc7 {[%emt 0:04:57]} 20. Rfc1 {[%emt 0:04:20]} Rec8 {[%emt 0:01:17]} 21. Qd2 {[%emt 0:02:39]} Be8 {[%emt 0:02:29]} 22. Nf4 {[%emt 0:04:00]} Qd8 {[%emt 0:04:21]} 23. Bd4 {[%emt 0:03:25]} Rab8 {[%emt 0:07:46]} 24. Nd3 {[%emt 0:04:39]} f6 {[%emt 0:03:19]} 25. Qe2 {[%emt 0:04:01]} Nc7 {[%emt 0:06:14]} 26. b5 {[%emt 0:00:47]} Bxb5 {[%emt 0:08:02]} 27. Nxb5 {[%emt 0:00:40]} Nxb5 {[%emt 0:00:58]} 28. Qxe6+ {[%emt 0:00:13]} Kh8 {[%emt 0:00:03]} 29. Bxd5 {[%emt 0:01:13]} Be7 {[%emt 0:05:11]} 30. Nf4 {[%emt 0:00:38]} Ng5 {[%emt 0:00:09]} 31. Ng6+ {[%emt 0:00:27]} Kh7 {[%emt 0:00:05]} 32. Qf5 {[%emt 0:00:40]} Qe8 {[%emt 0:04:09]} 33. Nxe7+ {[%emt 0:01:02]} g6 {[%emt 0:00:14]} 34. Qxf6 {[%emt 0:00:24]} Nxd4 {[%emt 0:00:56]} 35. Bg8+ {[%emt 0:00:17]} Qxg8 {[%emt 0:02:40]} 36. Nxg8 {[%emt 0:00:07]} Rf8 {[%emt 0:01:28]} 37. Rb7+ {[%emt 0:00:46]} 1-0

[Event "Slovakia Open Piestany-A 2022"]
[Site "Piestany"]
[Date "2022.07.12"]
[Round "2.12"]
[White "Savitha Shri B"]
[Black "Piesik, Piotr"]
[Result "1/2-1/2"]
[ECO "C07"]
[WhiteElo "2278"]
[BlackElo "2440"]
[Annotator "ChessBase"]
[PlyCount "132"]
[EventDate "2022.07.12"]
[EventType "swiss"]
[EventCountry "SVK"]
[SourceTitle "playchess.com"]
[Source "ChessBase"]
[SourceQuality "1"]
[TimeControl "40/5400+30:1800+30"]

1. e4 {[%emt 0:00:15]} e6 {[%emt 0:02:56]} 2. d4 {[%emt 0:00:24]} d5 {[%emt 0:00:06]} 3. Nd2 {[%emt 0:00:07]} c5 {[%emt 0:00:24]} 4. exd5 {[%emt 0:01:03]} Qxd5 {[%emt 0:00:28]} 5. Ngf3 {[%emt 0:00:36]} cxd4 {[%emt 0:00:06]} 6. Bc4 {[%emt 0:00:35]} Qd6 {[%emt 0:00:06]} 7. O-O {[%emt 0:00:07]} Nf6 {[%emt 0:00:13]} 8. Nb3 {[%emt 0:00:07]} Nc6 {[%emt 0:00:05]} 9. Nbxd4 {[%emt 0:00:32]} Nxd4 {[%emt 0:00:06]} 10. Nxd4 {[%emt 0:00:08]} a6 {[%emt 0:01:18]} 11. Re1 {[%emt 0:01:54]} Qc7 {[%emt 0:01:14]} 12. Qe2 {[%emt 0:00:59]} Bd6 {[%emt 0:05:35]} 13. Bg5 {[%emt 0:01:04]} Bd7 {[%emt 0:21:15]} 14. Nf5 {[%emt 0:28:30]} Bf8 {[%emt 0:05:14]} 15. Rad1 {[%emt 0:04:31]} O-O-O {[%emt 0:08:00]} 16. Nh6 {[%emt 0:12:43]} Be8 {[%emt 0:03:25]} 17. Ng4 {[%emt 0:04:25]} Be7 {[%emt 0:10:27]} 18. Rxd8+ {[%emt 0:04:09]} Bxd8 {[%emt 0:05:51]} 19. Ne5 {[%emt 0:00:48]} Qb6 {[%emt 0:03:16]} 20. Bb3 {[%emt 0:07:01]} Bc7 {[%emt 0:00:19]} 21. Bf4 {[%emt 0:03:37]} Nd7 {[%emt 0:04:35]} 22. Nc4 {[%emt 0:04:18]} Qc6 {[%emt 0:00:04]} 23. Qe3 {[%emt 0:03:29]} Kb8 {[%emt 0:05:55]} 24. Qd4 {[%emt 0:15:46]} Bxf4 {[%emt 0:21:32]} 25. Qxf4+ {[%emt 0:05:52]} Qc7 {[%emt 0:00:30]} 26. Qg5 {[%emt 0:00:30]} Rg8 {[%emt 0:00:30]} 27. Rd1 {[%emt 0:00:30]} Nf6 {[%emt 0:00:30]} 28. Ne5 {[%emt 0:00:30]} Bc6 {[%emt 0:00:30]} 29. Qf4 {[%emt 0:00:30]} Ka8 {[%emt 0:00:30]} 30. Qd4 {[%emt 0:00:30]} Rc8 {[%emt 0:00:30]} 31. c3 {[%emt 0:00:30]} Bd5 {[%emt 0:00:30]} 32. c4 {[%emt 0:00:30]} Be4 {[%emt 0:00:30]} 33. Ba4 {[%emt 0:00:30]} Bg6 {[%emt 0:00:30]} 34. h3 {[%emt 0:00:30]} Qc5 {[%emt 0:00:30]} 35. f4 {[%emt 0:00:30]} Ne4 {[%emt 0:00:30]} 36. Nd7 {[%emt 0:00:30]} Qxd4+ {[%emt 0:00:30]} 37. Rxd4 {[%emt 0:00:30]} Ka7 {[%emt 0:00:30]} 38. Ne5 {[%emt 0:00:30]} Nc5 {[%emt 0:00:30]} 39. Bd1 {[%emt 0:00:30]} a5 {[%emt 0:00:30]} 40. Kf2 {[%emt 0:00:30]} Rc7 {[%emt 0:00:30]} 41. Ke3 {[%emt 0:30:30]} Bb1 {[%emt 0:30:30]} 42. a3 {[%emt 0:00:30]} f6 {[%emt 0:00:30]} 43. Nf3 {[%emt 0:00:30]} a4 {[%emt 0:00:30]} 44. Rd8 {[%emt 0:00:30]} Be4 {[%emt 0:00:30]} 45. Nd4 {[%emt 0:00:30]} Bc6 {[%emt 0:00:30]} 46. g4 {[%emt 0:00:30]} Bd7 {[%emt 0:00:30]} 47. Bf3 {[%emt 0:00:30]} Kb6 {[%emt 0:00:30]} 48. h4 {[%emt 0:00:30]} Rc8 {[%emt 0:00:30]} 49. Rxc8 {[%emt 0:00:30]} Bxc8 {[%emt 0:00:30]} 50. Ne2 {[%emt 0:00:30]} Bd7 {[%emt 0:00:30]} 51. Nc3 {[%emt 0:00:30]} Kc7 {[%emt 0:00:30]} 52. g5 {[%emt 0:00:30]} b6 {[%emt 0:00:30]} 53. Ne2 {[%emt 0:00:30]} Kd6 {[%emt 0:00:30]} 54. Ng3 {[%emt 0:00:30]} Be8 {[%emt 0:00:30]} 55. Bh5 {[%emt 0:00:30]} Bc6 {[%emt 0:00:30]} 56. Bd1 {[%emt 0:00:30]} Be8 {[%emt 0:00:30]} 57. Bh5 {[%emt 0:00:30]} Bd7 {[%emt 0:00:30]} 58. Bd1 {[%emt 0:00:30]} e5 {[%emt 0:00:30]} 59. Nh5 {[%emt 0:00:30]} exf4+ {[%emt 0:00:30]} 60. Nxf4 {[%emt 0:00:30]} Ke5 {[%emt 0:00:30]} 61. gxf6 {[%emt 0:00:30]} gxf6 {[%emt 0:00:30]} 62. Bf3 {[%emt 0:00:30]} Be6 {[%emt 0:00:30]} 63. Bd5 {[%emt 0:00:30]} Bxd5 {[%emt 0:00:30]} 64. Nxd5 {[%emt 0:00:30]} Nd7 {[%emt 0:00:30]} 65. Nc3 {[%emt 0:00:30]} Nc5 {[%emt 0:00:30]} 66. Nd5 {[%emt 0:00:30]} Nd7 {[%emt 0:00:30]} 1/2-1/2

[Event "Slovakia Open Piestany-A 2022"]
[Site "Piestany"]
[Date "2022.07.12"]
[Round "2.13"]
[White "Brhel, Jan"]
[Black "Kostolansky, Sebastian Lukas"]
[Result "0-1"]
[ECO "A11"]
[WhiteElo "2018"]
[BlackElo "2406"]
[Annotator "ChessBase"]
[PlyCount "64"]
[EventDate "2022.07.12"]
[EventType "swiss"]
[EventCountry "SVK"]
[SourceTitle "playchess.com"]
[Source "ChessBase"]
[SourceQuality "1"]
[TimeControl "40/5400+30:1800+30"]

1. Nf3 {[%emt 0:00:20]} d5 {[%emt 0:02:34]} 2. e3 {[%emt 0:01:29]} Nf6 {[%emt 0:00:42]} 3. c4 {[%emt 0:01:50]} e6 {[%emt 0:01:05]} 4. Nc3 {[%emt 0:01:37]} c6 {[%emt 0:00:21]} 5. b3 {[%emt 0:01:17]} Nbd7 {[%emt 0:00:45]} 6. Bb2 {[%emt 0:00:17]} Bd6 {[%emt 0:00:07]} 7. Qc2 {[%emt 0:02:29]} O-O {[%emt 0:01:05]} 8. Rg1 {[%emt 0:04:36]} a6 {[%emt 0:28:53]} 9. g4 {[%emt 0:00:54]} b5 {[%emt 0:00:11]} 10. g5 {[%emt 0:05:32]} Ne8 {[%emt 0:03:59]} 11. h4 {[%emt 0:20:27]} bxc4 {[%emt 0:14:33]} 12. bxc4 {[%emt 0:00:21]} Rb8 {[%emt 0:09:08]} 13. Bd3 {[%emt 0:03:18]} f5 {[%emt 0:04:31]} 14. Na4 {[%emt 0:11:13]} Qe7 {[%emt 0:13:47]} 15. Nd4 {[%emt 0:17:08]} Ne5 {[%emt 0:03:02]} 16. Be2 {[%emt 0:01:28]} c5 {[%emt 0:03:32]} 17. Nb3 {[%emt 0:01:52]} dxc4 {[%emt 0:05:30]} 18. Nbxc5 {[%emt 0:04:30]} Nc7 {[%emt 0:01:16]} 19. d4 {[%emt 0:00:38]} cxd3 {[%emt 0:00:27]} 20. Nxd3 {[%emt 0:00:14]} Nxd3+ {[%emt 0:00:27]} 21. Bxd3 {[%emt 0:02:39]} Nd5 {[%emt 0:00:05]} 22. a3 {[%emt 0:01:03]} Bb7 {[%emt 0:03:31]} 23. Nc3 {[%emt 0:00:58]} Rfc8 {[%emt 0:01:08]} 24. Nxd5 {[%emt 0:00:59]} Bxd5 {[%emt 0:00:04]} 25. Qd2 {[%emt 0:00:19]} Qb7 {[%emt 0:01:10]} 26. Bd4 {[%emt 0:09:12]} Bh2 {[%emt 0:00:10]} 27. Kf1 {[%emt 0:01:36]} Be4 {[%emt 0:01:17]} 28. Bxe4 {[%emt 0:03:19]} Qxe4 {[%emt 0:00:05]} 29. Rg2 {[%emt 0:00:04]} Rb1+ {[%emt 0:00:18]} 30. Ke2 {[%emt 0:00:13]} Rxa1 {[%emt 0:01:04]} 31. Bxa1 {[%emt 0:00:11]} Rc2 {[%emt 0:00:39]} 32. Rxh2 {[%emt 0:00:10]} Qc4+ {[%emt 0:00:04]} 0-1